Cogmind - Beta 15 @@@ ROGUE MODE // 2025.07.16 @ 18:20:05 Player: scrunkly scrunkaler Result: Escaped! Performance ------------- Evolutions (9) 4500 Regions Visited (13) 2600 Robots Destroyed (98) 490 Value Destroyed (2503) 2503 Prototype IDs (32) 640 Alien Tech Used (0) 0 Bonus (3990) 3990 TOTAL SCORE: 14723 Bonus ------- High Alert Combat Kills 190 Entered DSFs 500 Aligned with FarCom 300 Win 3000 Cogmind --------- Core Integrity 1535/1600 Matter 83/300 Energy 200/240 System Corruption 0% Temperature Cool (25) Movement Flying (25) Location To Epsilon Eridani Parts ------- > --- POWER (2) -------- Micro Nuclear Core Light Quantum Reactor > --- PROPULSION (7) --- Improved VTOL Module Improved VTOL Module Field Propulsion Array Field Propulsion Array Cooled Impulse Thruster > --- UTILITY (14) ----- Small Storage Unit Structural Scanner Machine Analyzer Advanced Transmission Jammer Advanced ECM Suite Cloak of Protection Improved Light Armor Plating Hacking Suite Hacking Suite Hacking Suite Hacking Suite Hacking Suite Improved System Shield Improved System Shield > --- WEAPON (2) ------- Mini Grenade Launcher Plasma Sword > --- INVENTORY (8) ---- Micro Nuclear Core Light Antimatter Reactor Improved VTOL Module Impulse Thruster Array Advanced Reaction Control System Improved System Restoration Module Peak State ------------ > --- POWER ------------ Micro Nuclear Core Light Quantum Reactor > --- PROPULSION ------- Improved VTOL Module Improved VTOL Module Field Propulsion Array Field Propulsion Array Cooled Impulse Thruster > --- UTILITY ---------- Small Storage Unit Structural Scanner Machine Analyzer Advanced Transmission Jammer Advanced ECM Suite Cloak of Protection Improved Light Armor Plating Hacking Suite Hacking Suite Hacking Suite Hacking Suite System Shield Improved System Shield Improved System Shield > --- WEAPON ----------- Mini Grenade Launcher Plasma Sword > --- INVENTORY -------- Micro Nuclear Core Light Antimatter Reactor Improved VTOL Module Impulse Thruster Array Advanced Reaction Control System Improved System Restoration Module [Rating: 123] Favorites ----------- Power Ion Engine Engine Ion Engine Power Core Micro Nuclear Core Reactor Light Antimatter Reactor Propulsion Improved VTOL Module Treads Light Treads Leg Aluminum Leg Wheel Compact Wheel Flight Unit Improved VTOL Module Utility Hacking Suite Device Scrap Suit Storage Huge Storage Unit Processor Transport Network Coupler Hackware Hacking Suite Protection Improved Light Armor Plating Weapon Assault Rifle Energy Gun Heavy Laser Energy Cannon Beam Cannon Ballistic Gun Assault Rifle Ballistic Cannon Flak Cannon Launcher Mini Grenade Launcher Impact Weapon Heavy Flail Slashing Weapon Plasma Sword Build | -11 -10 -10 -10 -9 -8 -7 -6 -6 -5 -4 -3 -2 -1 ------- Run | Yrd Mat Min Exi Min Mat Fac Fac DSF Fac Fac Res Res Acc Slots Evolved 18 | . . . . . 4 2 2 . 2 2 2 2 2 Power 1 | . . . . . . . . . . 1 . . . Propulsion 5 | . . . . . 2 1 1 . . . . . 1 Utility 12 | . . . . . 2 1 1 . 2 1 2 2 1 Weapon . | . . . . . . . . . . . . . . Parts Attached 83 | 6 3 1 1 3 25 17 3 2 8 4 3 4 3 Power 12 | 1 . . . 1 3 3 . . 2 1 . . 1 Engine 3 | 1 . . . 1 . 1 . . . . . . . Core 7 | . . . . . 3 2 . . 2 . . . . Reactor 2 | . . . . . . . . . . 1 . . 1 Propulsion 28 | 2 . 1 . 2 13 4 1 . 1 1 1 2 . Treads 11 | 2 . . . . 9 . . . . . . . . Leg 1 | . . 1 . . . . . . . . . . . Wheel 5 | . . . . 2 3 . . . . . . . . Hover . | . . . . . . . . . . . . . . Flight 11 | . . . . . 1 4 1 . 1 1 1 2 . Utility 31 | 1 2 . 1 . 2 9 2 1 5 2 2 2 2 Device 10 | . . . . . 1 4 1 1 1 1 . . 1 Storage 4 | 1 1 . 1 . . 1 . . . . . . . Processor 4 | . 1 . . . . . 1 . 2 . . . . Hackware 9 | . . . . . 1 1 . . 2 1 1 2 1 Protection 4 | . . . . . . 3 . . . . 1 . . Artifact . | . . . . . . . . . . . . . . Weapon 12 | 2 1 . . . 7 1 . 1 . . . . . Energy Gun 1 | . . . . . 1 . . . . . . . . Energy Cannon 3 | . 1 . . . 2 . . . . . . . . Ballistic Gun 3 | 2 . . . . 1 . . . . . . . . Ballistic Cannon 1 | . . . . . 1 . . . . . . . . Launcher 1 | . . . . . 1 . . . . . . . . Special Weapon . | . . . . . . . . . . . . . . Impact Weapon 1 | . . . . . 1 . . . . . . . . Slashing Weapon 2 | . . . . . . 1 . 1 . . . . . Piercing Weapon . | . . . . . . . . . . . . . . Special Melee Weapon . | . . . . . . . . . . . . . . Unidentified Prototypes 7 | . . . . . 2 1 . 1 2 . . 1 . Parts Lost 9 | . . 2 . . 7 . . . . . . . . Power 1 | . . . . . 1 . . . . . . . . Propulsion 8 | . . 2 . . 6 . . . . . . . . Utility . | . . . . . . . . . . . . . . Weapon . | . . . . . . . . . . . . . . Highest Loss Streak 6 | . . 2 . . 6 . . . . . . . . To Critical Strikes . | . . . . . . . . . . . . . . Average Backups 7 | 2 2 5 6 8 15 7 6 8 7 6 4 4 5 Power 1 | . 1 1 2 2 1 . . 1 1 . 1 2 1 Propulsion . | . . . . . 3 . . . . 1 1 1 1 Utility 3 | . . . 2 3 6 6 6 7 5 5 2 1 1 Weapon 1 | . 1 2 2 3 4 . . . . . . . . Tool/Special . | . . . . . . . . . . . . . . Unused Backups 25 | . . 2 . . 10 4 1 . 1 3 1 . 3 Power 3 | . . 1 . . . . . . 1 . . . 1 Propulsion 4 | . . . . . 1 . . . . 1 1 . 1 Utility 11 | . . . . . 3 4 1 . . 2 . . 1 Weapon 7 | . . 1 . . 6 . . . . . . . . Tool/Special . | . . . . . . . . . . . . . . Average Slot Usage (%) 89 | . 93 92 85 88 80 97 97 100 93 93 94 93 90 Engine 7 | . 14 14 14 14 2 . . . . . . . . Core 3 | . . . . . 5 7 6 6 4 10 9 8 4 Treads 8 | . 28 14 . . 15 . . . . . . . . Leg 3 | . . 6 14 9 . . . . . . . . . Wheel 2 | . . . . 7 11 . . . . . . . . Flight 8 | . . . . . . 36 39 40 29 26 23 20 20 Device 5 | . . . . . 9 5 6 13 10 14 13 13 15 Storage 10 | . 14 13 14 14 9 7 6 6 5 5 4 4 4 Processor 8 | . 8 14 14 14 4 . 4 6 5 5 4 4 4 Hackware 7 | . . . . . 4 14 13 13 22 21 23 27 27 Protection 1 | . . . . . . 7 5 . . . 3 4 4 Energy Cannon 7 | . 13 14 14 14 5 . . . . . . . . Ballistic Gun 7 | . 14 14 14 14 4 . . . . . . . . Launcher 1 | . . . . . . 6 6 6 5 5 4 4 4 Slashing Weapon 1 | . . . . . . 6 6 6 5 5 4 4 3 Peak Build Rating 123 | 6 7 8 8 10 34 46 52 60 70 87 94 105 123 Average Rating 33 | 3 6 7 7 8 27 44 50 58 66 77 86 101 118 On Entrance 40 | . 6 7 7 8 9 31 46 50 57 70 84 88 102 Naked Turns . | . . . . . . . . . . . . . . Heaviest Build 90 | 14 90 90 90 50 64 23 22 24 19 33 36 37 46 Greatest Support 80 | 40 40 40 10 26 80 25 25 30 33 35 36 40 50 Greatest Overweight (x) 16 | . 2 8 8 4 16 . . . . . . . . Average Overweight (x) . | . 1 3 7 2 . . . . . . . . . Largest Inventory Capacity 25 | 8 25 25 25 20 20 20 8 8 8 8 8 8 8 Average Capacity 18 | 6 22 24 24 20 20 8 8 8 8 8 8 8 8 Most Carried 20 | 5 4 7 9 11 20 20 8 8 8 8 7 8 8 Average Carried 8 | 2 2 5 7 9 16 7 6 8 7 7 5 5 6 Final Capacity 25 | 8 25 25 20 20 20 8 8 8 8 8 8 8 8 Final Carried 20 | 2 3 7 8 10 20 7 8 8 8 7 6 6 7 Class Distribution -------------------- 54% | Mutant 14% | Scavenger-Mutant 11% | Hacker-Ninja 9% | Wizard-Ninja 9% | Hacker-Sprinter Dominant Class ---------------- Mutant | -10/Materials Mutant | -10/Mines Mutant | -10/Exiles Mutant | -9/Mines Scavenger-Mutant | -8/Materials Hacker-Sprinter | -7/Factory Hacker-Sprinter | -6/Factory Hacker-Sprinter | -6/DSF Hacker-Ninja | -5/Factory Hacker-Ninja | -4/Factory Hacker-Ninja | -3/Research Wizard-Ninja | -2/Research Wizard-Ninja | -1/Access Resources | -11 -10 -10 -10 -9 -8 -7 -6 -6 -5 -4 -3 -2 -1 ----------- Run | Yrd Mat Min Exi Min Mat Fac Fac DSF Fac Fac Res Res Acc Matter Collected 2346 | 260 99 116 . 51 1072 188 54 . 95 170 78 . 163 Remotely . | . . . . . . . . . . . . . . Salvage Created 3590 | . 182 314 . 117 1786 348 175 . 95 158 207 . 208 Parts 213 | . 12 12 . 7 108 18 23 . 7 13 7 . 6 Haulers Intercepted 11 | . 2 . . . 5 2 . . . . 1 . 1 Recyclers Shooed 4 | . . . . 1 3 . . . . . . . . Parts Field Recycled . | . . . . . . . . . . . . . . Retrieved Matter . | . . . . . . . . . . . . . . Parts Self-Destructed . | . . . . . . . . . . . . . . Prevented . | . . . . . . . . . . . . . . Kills | -11 -10 -10 -10 -9 -8 -7 -6 -6 -5 -4 -3 -2 -1 ------- Run | Yrd Mat Min Exi Min Mat Fac Fac DSF Fac Fac Res Res Acc Combat Hostiles Destroyed 49 | . 4 9 . . 36 . . . . . . . . Guns 14 | . 4 3 . . 7 . . . . . . . . Cannons 28 | . . 6 . . 22 . . . . . . . . AOE 7 | . . . . . 7 . . . . . . . . Classes Destroyed 14 | . 3 1 . 2 7 1 . . . . . . . Worker 2 | . . . . . 2 . . . . . . . . Builder 12 | . . . . . 4 2 6 . . . . . . Tunneler 1 | . . . . 1 . . . . . . . . . Hauler 11 | . 2 . . . 5 2 . . . . 1 . 1 Recycler 7 | . . . . 2 4 1 . . . . . . . Mechanic 2 | . . . . . . 1 1 . . . . . . Operator 6 | . . . . . 1 1 . . 1 3 . . . Watcher 11 | . . . . . 1 1 . . 2 2 2 . 3 Swarmer 11 | . 3 . . . 8 . . . . . . . . Grunt 25 | . 1 6 . . 18 . . . . . . . . Brawler 1 | . . . . . 1 . . . . . . . . Duelist 2 | . . . . . 2 . . . . . . . . Sentry 7 | . . . . . 7 . . . . . . . . Assembled 3 | . . 3 . . . . . . . . . . . Best Kill Streak 13 | . 3 3 . 2 13 2 3 . 1 1 1 . 1 Combat Bots Only 8 | . 3 3 . . 8 . . . . . . . . Max Kills in Single Turn 5 | . 1 1 . 1 5 1 1 . 1 1 1 . 1 Gunslinging . | . . . . . . . . . . . . . . Exploded 5 | . . . . . 5 . . . . . . . . Melee . | . . . . . . . . . . . . . . Uniques/NPCs Destroyed . | . . . . . . . . . . . . . . Combat | -11 -10 -10 -10 -9 -8 -7 -6 -6 -5 -4 -3 -2 -1 -------- Run | Yrd Mat Min Exi Min Mat Fac Fac DSF Fac Fac Res Res Acc Hostile Shots Fired 280 | . 16 40 . . 157 . . 12 2 16 8 2 27 Missed 109 | . 7 9 . . 48 . . 9 2 13 6 . 15 Hits 171 | . 9 31 . . 109 . . 3 . 3 2 2 12 Melee 3 | . . 1 . . 2 . . . . . . . . Projectile 168 | . 9 30 . . 107 . . 3 . 3 2 2 12 AOE 1 | . . . . . . . . 1 . . . . . Critical Strikes 8 | . . 2 . . 6 . . . . . . . . Damage Taken 3171 | . 78 495 . . 1956 21 38 44 . 55 62 53 369 Core 384 | . 18 81 . . 203 . . 6 . . 11 . 65 Absorbed by Shields . | . . . . . . . . . . . . . . Regen/Repaired (Parts) 261 | . . . . . 68 20 79 . 11 . . . 83 Core Remaining (%) 91 | 100 . . . 60 63 100 . 99 100 100 99 100 95 Volleys Fired 177 | . 23 32 . 7 99 . 1 . . . 5 . 10 Largest 2 | . 2 2 . 2 2 . 1 . . . 1 . 1 Hottest 120 | . 80 80 . 80 120 . 30 . . . 30 . 30 Shots Fired 335 | . 46 64 . 14 195 . 1 . . . 5 . 10 Gun 128 | . 23 32 . 7 66 . . . . . . . . Cannon 179 | . 23 32 . 7 117 . . . . . . . . Launcher 28 | . . . . . 12 . 1 . . . 5 . 10 Special . | . . . . . . . . . . . . . . Kinetic 164 | . 23 32 . 7 102 . . . . . . . . Thermal 143 | . 23 32 . 7 81 . . . . . . . . Explosive 28 | . . . . . 12 . 1 . . . 5 . 10 Electromagnetic . | . . . . . . . . . . . . . . Robot Hit Streak 17 | . 9 6 . 3 17 . . . . . . . . Robot Miss Streak 11 | . 4 8 . 2 11 . . . . . . . . Penetration Max . | . . . . . . . . . . . . . . Secondary Targets . | . . . . . . . . . . . . . . Shots Hit Robots 249 | . 22 38 . 7 135 12 9 . 4 8 5 3 6 Core Hits 165 | . 9 19 . 4 109 5 6 . 3 3 3 . 4 Critical Kills 2 | . 1 . . . 1 . . . . . . . . Critical Parts Destroyed 1 | . 1 . . . . . . . . . . . . Critical Strikes 6 | . 2 . . . 2 1 1 . . . . . . Burn 1 | . . . . . 1 . . . . . . . . Destroy 3 | . 2 . . . 1 . . . . . . . . Sever 2 | . . . . . . 1 1 . . . . . . Melee Attacks 166 | . . . . . 4 35 23 9 14 18 23 14 26 Impact 4 | . . . . . 4 . . . . . . . . Slashing 162 | . . . . . . 35 23 9 14 18 23 14 26 Piercing . | . . . . . . . . . . . . . . Sneak Attacks 16 | . . . . . . 7 6 . . . 1 1 1 Combat Hostiles . | . . . . . . . . . . . . . . Follow-up Attacks . | . . . . . . . . . . . . . . Damage Inflicted 8555 | . 339 577 . 110 4627 724 594 . 217 487 323 187 370 Guns 1232 | . 215 225 . 38 754 . . . . . . . . Cannons 2598 | . 124 352 . 72 2050 . . . . . . . . Explosions 1823 | . . . . . 1823 . . . . . . . . Melee 2845 | . . . . . . 724 537 . 217 487 323 187 370 Ramming 57 | . . . . . . . 57 . . . . . . Kinetic 1901 | . 215 225 . 38 1423 . . . . . . . . Thermal 2721 | . 124 352 . 72 2173 . . . . . . . . Explosive 1031 | . . . . . 1031 . . . . . . . . Electromagnetic . | . . . . . . . . . . . . . . Impact . | . . . . . . . . . . . . . . Slashing 2845 | . . . . . . 724 537 . 217 487 323 187 370 Piercing . | . . . . . . . . . . . . . . Highest Corruption 1 | . . . . . . . . . . 1 . . . Average Corruption 1 | . . . . . . . . . . 1 . . . Corruption Purged . | . . . . . . . . . . . . . . Corruption Blocked . | . . . . . . . . . . . . . . Effects 1 | . . . . . . . . . . 1 . . . Message Errors 1 | . . . . . . . . . . 1 . . . Overload Shots 8 | . . . . . 8 . . . . . . . . Effects 1 | . . . . . 1 . . . . . . . . Heat Surge 1 | . . . . . 1 . . . . . . . . Overflow Damage 1029 | . . . . . 501 145 180 . 15 132 56 . . Projectiles 46 | . . . . . 46 . . . . . . . . Explosions 455 | . . . . . 455 . . . . . . . . Melee 528 | . . . . . . 145 180 . 15 132 56 . . Knockbacks 16 | . . . . . 16 . . . . . . . . Impact . | . . . . . . . . . . . . . . Kinetic 16 | . . . . . 16 . . . . . . . . Secondary . | . . . . . . . . . . . . . . Self-Inflicted Damage 478 | . . . . . 389 . 38 . . . 22 . 29 Shots 13 | . . . . . 10 . 1 . . . 1 . 1 Rammed 1 | . . . . . . . 1 . . . . . . Targets Rammed 2 | . . 1 . . . . 1 . . . . . . Kicked 1 | . . 1 . . . . . . . . . . . Crushed . | . . . . . . . . . . . . . . Highest Temperature 303 | . 168 243 . 54 303 178 2 . . 3 15 17 16 Average Temperature 44 | . 50 101 . 22 45 42 2 . . 2 3 10 9 Received Heat Transfer 1098 | . 24 255 . . 783 . . 6 . . 21 9 . Effects 1 | . . 1 . . . . . . . . . . . Energy Bleed 1 | . . 1 . . . . . . . . . . . Siege Activations . | . . . . . . . . . . . . . . Martial Activations . | . . . . . . . . . . . . . . Shielding Activations . | . . . . . . . . . . . . . . Robots Disrupted . | . . . . . . . . . . . . . . Combat Hostiles . | . . . . . . . . . . . . . . Robots Corrupted . | . . . . . . . . . . . . . . Combat Hostiles . | . . . . . . . . . . . . . . Parts Fried 1 | . . . . . . . 1 . . . . . . Impact Corruptions 1 | . . . . . . . 1 . . . . . . Robots Melted . | . . . . . . . . . . . . . . Combat Hostiles . | . . . . . . . . . . . . . . Parts Melted 2 | . . 1 . . 1 . . . . . . . . Heat Transferred 3544 | . 259 740 . 148 2397 . . . . . . . . Parts Sabotaged . | . . . . . . . . . . . . . . Parts Stolen . | . . . . . . . . . . . . . . Parts Stripped . | . . . . . . . . . . . . . . Power Chain Reactions . | . . . . . . . . . . . . . . Alert | -11 -10 -10 -10 -9 -8 -7 -6 -6 -5 -4 -3 -2 -1 ------- Run | Yrd Mat Min Exi Min Mat Fac Fac DSF Fac Fac Res Res Acc Maximum Alert Level 3 | . . . . . 3 1 . . . . . . . Low Security (%) 86 | 100 100 100 . 100 56 46 100 100 100 100 100 100 100 Level 1 5 | . . . . . 8 53 . . . . . . . Level 2 2 | . . . . . 11 . . . . . . . . Level 3 5 | . . . . . 22 . . . . . . . . Level 4 . | . . . . . . . . . . . . . . Level 5 . | . . . . . . . . . . . . . . High Security . | . . . . . . . . . . . . . . Max Security . | . . . . . . . . . . . . . . Peak Influence 769 | . 76 40 . 10 769 338 26 9 39 50 42 39 101 Initial 336 | . . . . . . 336 25 . 4 18 . 15 1 Average 89 | . 8 3 . . 298 198 5 7 3 11 10 12 27 Influence Increases 2617 | . 129 165 . 15 1267 88 84 9 113 112 133 78 424 Destroy 0b10 Robot/C 920 | . 80 120 . . 720 . . . . . . . . Destroy 0b10 Robot/NC 260 | . 10 . . 15 85 40 35 . 15 25 15 . 20 Destroy Leader 244 | . 14 30 . . 172 6 . . 4 4 6 . 8 Successful Hack 238 | . 8 . . . . 24 25 . 16 30 36 30 69 Disable Machine 90 | . . . . . 75 . . . . 15 . . . Destroy Structure 460 | . 2 . . . 125 18 24 9 18 8 46 33 177 Partial Spotted 135 | . . . . . . . . . 45 30 . 15 45 Lose Combat Pursuer 270 | . 15 15 . . 90 . . . 15 . 30 . 105 Influence Decreases 2516 | . 129 165 . 15 526 777 136 . 83 151 105 103 326 Entered New Map 473 | . . . . . . 405 27 . 5 21 . 13 2 Time Decay 1723 | . 129 157 . 15 456 222 109 . 78 130 105 90 232 Lost Part 78 | . . 8 . . 70 . . . . . . . . Purge Threat 242 | . . . . . . 150 . . . . . . 92 Squads Dispatched 27 | . 2 . . . 4 4 1 2 1 2 3 3 5 Investigation 4 | . 1 . . . . 1 . . . . . 1 1 Extermination 9 | . . . . . . . 1 . 1 1 2 1 3 Reinforcement 13 | . 1 . . . 3 3 . 2 . 1 1 1 1 Assault 1 | . . . . . 1 . . . . . . . . Garrison . | . . . . . . . . . . . . . . Intercept . | . . . . . . . . . . . . . . Searches Triggered . | . . . . . . . . . . . . . . Construction Impeded 2 | . . . . . 2 . . . . . . . . Haulers Reinforced 2 | . . . . . . 1 . . . . . 1 . Active Scanning Responses . | . . . . . . . . . . . . . . Cargo Convoy Interrupts . | . . . . . . . . . . . . . . Stealth | -11 -10 -10 -10 -9 -8 -7 -6 -6 -5 -4 -3 -2 -1 --------- Run | Yrd Mat Min Exi Min Mat Fac Fac DSF Fac Fac Res Res Acc Distress Signals 11 | . . . . . 8 . 1 . . . . . 2 Communications Jammed 9 | . . . . . . . . . . 2 3 1 3 Distress Signals 8 | . . . . . . . . . . 2 3 . 3 Times Spotted 143 | . 7 12 . . 59 5 2 8 5 12 12 1 20 Peak Tracking Total 11 | . 3 7 . . 11 3 3 7 1 4 6 1 6 Tactical Retreats 18 | . 1 1 . . 4 . . . 1 2 2 . 7 Traps | -11 -10 -10 -10 -9 -8 -7 -6 -6 -5 -4 -3 -2 -1 ------- Run | Yrd Mat Min Exi Min Mat Fac Fac DSF Fac Fac Res Res Acc Traps Triggered 10 | . . . . . 1 2 2 . . 2 1 . 2 Indirectly . | . . . . . . . . . . . . . . Trap Hack Attempts . | . . . . . . . . . . . . . . Triggered . | . . . . . . . . . . . . . . Disarmed . | . . . . . . . . . . . . . . Reprogrammed . | . . . . . . . . . . . . . . Reused . | . . . . . . . . . . . . . . Traps Extracted . | . . . . . . . . . . . . . . Installed . | . . . . . . . . . . . . . . Triggered . | . . . . . . . . . . . . . . Machines | -11 -10 -10 -10 -9 -8 -7 -6 -6 -5 -4 -3 -2 -1 ---------- Run | Yrd Mat Min Exi Min Mat Fac Fac DSF Fac Fac Res Res Acc Machines Disabled 6 | . . . . . 5 . . . . 1 . . . Max in Single Turn 3 | . . . . . 3 . . . . 1 . . . Garrison Access 9 | . . . . . . 1 . . 1 1 1 1 4 Machines Repaired . | . . . . . . . . . . . . . . Machines Dismantled . | . . . . . . . . . . . . . . Machines Sabotaged . | . . . . . . . . . . . . . . Overloaded Fab Kills . | . . . . . . . . . . . . . . Hacking | -11 -10 -10 -10 -9 -8 -7 -6 -6 -5 -4 -3 -2 -1 --------- Run | Yrd Mat Min Exi Min Mat Fac Fac DSF Fac Fac Res Res Acc Machines Accessed 65 | . 3 . 1 . 6 9 4 . 7 7 6 4 18 Terminals 42 | . 3 . . . 3 8 2 . 5 3 5 2 11 Fabricators 3 | . . . . . . . . . . 1 . 1 1 Repair Stations 6 | . . . . . 1 . 2 . 1 . . . 2 Recycling Units . | . . . . . . . . . . . . . . Scanalyzers 4 | . . . . . 2 . . . . 2 . . . Garrison Access 9 | . . . . . . 1 . . 1 1 1 1 4 Total Hacks 168 | . 11 . 1 . 17 17 6 . 16 14 19 18 49 Successful 88 | . 5 . 1 . 14 7 5 . 6 7 10 6 27 Failed 80 | . 6 . . . 3 10 1 . 10 7 9 12 22 Catastrophic 15 | . . . . . . 3 . . 1 1 2 3 5 Database Lockouts . | . . . . . . . . . . . . . . Manual 54 | . 7 . 1 . 3 6 . . 2 2 7 13 13 Terminals 120 | . 11 . . . 6 16 2 . 11 6 18 13 37 Fabricators 7 | . . . . . . . . . . 1 . 3 3 Repair Stations 14 | . . . . . 2 . 4 . 3 . . . 5 Recycling Units . | . . . . . . . . . . . . . . Scanalyzers 14 | . . . . . 9 . . . . 5 . . . Garrison Access 12 | . . . . . . 1 . . 2 2 1 2 4 Terminal Hacks 50 | . 5 . 1 . 3 6 1 . 3 3 9 2 17 Record 3 | . . . . . 3 . . . . . . . . Part Schematic 1 | . . . . . . . . . . . 1 . . Prototype ID Bank 1 | . 1 . . . . . . . . . . . . Open Door 1 | . . . . . . . . . . . . . 1 Open DSF 4 | . . . . . . 2 1 . . 1 . . . Level Access Points 3 | . . . . . . . . . . . 1 1 1 Branch Access Points 2 | . 1 . . . . . . . . . 1 . . Emergency Access Points 1 | . . . . . . . . . 1 . . . . Machine Index 3 | . . . . . . . . . 1 1 . . 1 Terminal Index 5 | . . . . . . 1 . . . . 1 1 2 Fabricator Index 1 | . . . . . . . . . . . 1 . . Alert Level 5 | . 1 . . . . . . . . . 2 . 2 Unreport Threat 2 | . . . . . . 1 . . . . . . 1 Locate Traps 2 | . 1 . . . . . . . 1 . . . . Surveillance Status 1 | . . . . . . . . . . . . . 1 Reinforcement Status 1 | . . . . . . . . . . . . . 1 Recall Investigation 1 | . 1 . . . . . . . . . . . . Recall Extermination 4 | . . . . . . . . . . 1 1 . 2 Recall Reinforcements 1 | . . . . . . . . . . . . . 1 Hauler Manifests 2 | . . . . . . 1 . . . . 1 . . Zone Layout 5 | . . . . . . 1 . . . . . . 4 Proto ID Catalog 1 | . . . 1 . . . . . . . . . . Fabricator Hacks 5 | . . . . . . . . . . 1 . 2 2 Network Status 1 | . . . . . . . . . . 1 . . . Load Schematic 2 | . . . . . . . . . . . . 1 1 Build 2 | . . . . . . . . . . . . 1 1 Repair Station Hacks 12 | . . . . . 2 . 4 . 2 . . . 4 Scan Component 6 | . . . . . 1 . 2 . 1 . . . 2 Repair 6 | . . . . . 1 . 2 . 1 . . . 2 Recycling Unit Hacks . | . . . . . . . . . . . . . . Scanalyzer 10 | . . . . . 8 . . . . 2 . . . Insert Component 5 | . . . . . 4 . . . . 1 . . . Analyze 5 | . . . . . 4 . . . . 1 . . . Garrison Access Hacks 9 | . . . . . . 1 . . 1 1 1 1 4 Seal Access 9 | . . . . . . 1 . . 1 1 1 1 4 Unauthorized Hacks 2 | . . . . . 1 . . . . . . 1 . Terminals 2 | . . . . . 1 . . . . . . 1 . Assimilate 1 | . . . . . 1 . . . . . . . . Botnet 1 | . . . . . . . . . . . . 1 . Fabricators . | . . . . . . . . . . . . . . Repair Stations . | . . . . . . . . . . . . . . Recycling Units . | . . . . . . . . . . . . . . Scanalyzers . | . . . . . . . . . . . . . . Garrison Access . | . . . . . . . . . . . . . . Data Cores Recovered 3 | . . . . . 1 1 . . 1 . . . . Used 2 | . . . . . . 1 . . 1 . . . . Hacking Detections 44 | . 3 . . . 4 6 1 . 5 3 5 3 14 Full Trace Events 4 | . 2 . . . . . . . . . . 1 1 Feedback Events . | . . . . . . . . . . . . . . Feedback Blocked . | . . . . . . . . . . . . . . Robot Schematics Acquired . | . . . . . . . . . . . . . . Robots Built . | . . . . . . . . . . . . . . Authchips . | . . . . . . . . . . . . . . Time . | . . . . . . . . . . . . . . Total Robot Build Rating . | . . . . . . . . . . . . . . Part Schematics Acquired 6 | . . . . . 4 . . . . 1 1 . . Parts Built 2 | . . . . . . . . . . . . 1 1 Authchips . | . . . . . . . . . . . . . . Time 48 | . . . . . . . . . . . . 24 24 Total Part Build Rating 6 | . . . . . . . . . . . . 3 3 Parts Repaired 6 | . . . . . 1 . 2 . 1 . . . 2 Time 193 | . . . . . 32 . 74 . 44 . . . 43 Parts Recycled . | . . . . . . . . . . . . . . Recycled Matter . | . . . . . . . . . . . . . . Retrieved Matter . | . . . . . . . . . . . . . . Retrieved Components . | . . . . . . . . . . . . . . Parts Scanalyzed 5 | . . . . . 4 . . . . 1 . . . Part Schematics Acquired 5 | . . . . . 4 . . . . 1 . . . Parts Damaged . | . . . . . . . . . . . . . . Bothacking | -11 -10 -10 -10 -9 -8 -7 -6 -6 -5 -4 -3 -2 -1 ------------ Run | Yrd Mat Min Exi Min Mat Fac Fac DSF Fac Fac Res Res Acc Used RIF Installer . | . . . . . . . . . . . . . . Robots Hacked . | . . . . . . . . . . . . . . Non-combat . | . . . . . . . . . . . . . . Combat . | . . . . . . . . . . . . . . Robot Hacks Applied . | . . . . . . . . . . . . . . Relay Couplers Released . | . . . . . . . . . . . . . . Fabnet Peak Effective % . | . . . . . . . . . . . . . . Robots Rewired . | . . . . . . . . . . . . . . Allies Hacked . | . . . . . . . . . . . . . . Hacks Repelled . | . . . . . . . . . . . . . . Allies | -11 -10 -10 -10 -9 -8 -7 -6 -6 -5 -4 -3 -2 -1 -------- Run | Yrd Mat Min Exi Min Mat Fac Fac DSF Fac Fac Res Res Acc Total Allies . | . . . . . . . . . . . . . . Largest Group . | . . . . . . . . . . . . . . Highest-Rated Group . | . . . . . . . . . . . . . . Highest-Rated Ally . | . . . . . . . . . . . . . . Total Orders . | . . . . . . . . . . . . . . Ally Attacks . | . . . . . . . . . . . . . . Total Damage . | . . . . . . . . . . . . . . Kills . | . . . . . . . . . . . . . . Allies Corrupted . | . . . . . . . . . . . . . . Allies Melted . | . . . . . . . . . . . . . . Intel | -11 -10 -10 -10 -9 -8 -7 -6 -6 -5 -4 -3 -2 -1 ------- Run | Yrd Mat Min Exi Min Mat Fac Fac DSF Fac Fac Res Res Acc Active Infowar (turns) 8963 | . 548 2039 1791 347 1203 218 420 148 456 441 344 278 730 Optics 43 | . . . . . . . . . 43 . . . . Structural 2123 | . . . . . . . 17 15 371 415 297 278 730 Seismic 12 | . . . . . . 12 . . . . . . . T.N.C. 5928 | . 548 2039 1791 347 1203 . . . . . . . . Machine Analysis 2733 | . . . . . . . 336 148 456 441 344 278 730 Cloaking 205 | . . . . . . . . 11 . 29 5 44 116 Jamming 2500 | . . . . . . 206 413 32 103 401 339 278 728 ECM 119 | . . . . . . 5 . 5 10 35 3 . 61 Robot Analysis Total . | . . . . . . . . . . . . . . Derelict Logs Recovered 1 | . . 1 . . . . . . . . . . . Drone Launches . | . . . . . . . . . . . . . . Drone Recoveries . | . . . . . . . . . . . . . . Exploration | -11 -10 -10 -10 -9 -8 -7 -6 -6 -5 -4 -3 -2 -1 ------------- Run | Yrd Mat Min Exi Min Mat Fac Fac DSF Fac Fac Res Res Acc Turns Passed 10605 | 57 918 2039 1791 347 2172 464 420 148 456 441 344 278 730 Spaces Moved 9733 | 45 302 447 293 142 844 1174 898 138 946 1202 1002 402 1898 Core 32 | 25 . 3 . . 4 . . . . . . . . Treads 981 | 20 302 304 . . 355 . . . . . . . . Legs 487 | . . 140 293 54 . . . . . . . . . Wheels 573 | . . . . 88 485 . . . . . . . . Hover . | . . . . . . . . . . . . . . Flight 7660 | . . . . . . 1174 898 138 946 1202 1002 402 1898 Fastest Speed 20 | 50 160 120 400 105 105 23 23 20 20 24 24 20 21 Average Speed 81 | 98 273 428 611 222 139 23 23 22 25 24 24 24 24 Slowest Speed 850 | 160 320 680 680 400 850 23 23 23 30 24 25 25 25 Overloaded Moves 38 | . . . . . . . . . . . . 12 26 Propulsion Burnouts . | . . . . . . . . . . . . . . Robots Hopped 5 | . . . . . . . 1 . 2 1 . . 1 Potential Cave-ins 10 | . . . . . . . . . . . 6 . 4 Cave-ins Triggered . | . . . . . . . . . . . . . . Exploration Rate (%) 39 | 3 44 93 71 26 57 31 18 64 24 29 29 16 50 Regions Visited 13 Branch Regions 3 Pre-discovered Areas . | . . . . . . . . . . . . . . Known Exits Taken 5 | . 1 . . . 1 . 1 . . . 1 1 . Unknown Exits Taken 7 | 1 . 1 1 1 . 1 . . 1 1 . . . Scrap Searched 3 | . . 1 . 2 . . . . . . . . . Spaces Dug 237 | . . . . . 43 18 13 9 9 4 39 11 91 Terrain Destroyed 384 | . . . . . 128 18 25 9 9 4 75 11 105 Melee 98 | . . . . . 4 18 13 9 9 4 14 11 16 Projectile 17 | . . . . . 17 . . . . . . . . AOE 269 | . . . . . 107 . 12 . . . 61 . 89 Terrain Rammed . | . . . . . . . . . . . . . . Walls Destroyed . | . . . . . . . . . . . . . . Machines Disabled . | . . . . . . . . . . . . . . Actions | -11 -10 -10 -10 -9 -8 -7 -6 -6 -5 -4 -3 -2 -1 --------- Run | Yrd Mat Min Exi Min Mat Fac Fac DSF Fac Fac Res Res Acc Total 11833 | 57 349 504 296 159 1645 1320 1074 239 1135 1325 1065 560 2105 Wait 1345 | . 18 14 . 1 579 60 121 89 148 45 3 131 136 Move 9709 | 44 301 446 292 141 843 1173 895 137 941 1199 1001 401 1895 Hop 5 | . . . . . . . 1 . 2 1 . . 1 Pick Up 113 | 7 3 6 2 5 44 9 7 . 9 7 3 4 7 Fast Attach 13 | 1 . 2 . . 5 3 . 1 1 . . . . Attach 67 | 5 2 1 . 2 12 9 5 . 8 4 7 4 8 Detach 9 | . . . . . . . . . 1 . 4 1 3 Swap 66 | . 1 . 1 1 32 9 1 2 3 8 2 3 3 Drop 79 | . 1 2 1 2 27 22 1 1 8 7 2 2 3 Fire 177 | . 23 32 . 7 99 . 1 . . . 5 . 10 Melee 166 | . . . . . 4 35 23 9 14 18 23 14 26 Ram 1 | . . . . . . . 1 . . . . . . Kick 1 | . . 1 . . . . . . . . . . . Crush . | . . . . . . . . . . . . . . Escape Stasis 82 | . . . . . . . 18 . . 36 15 . 13 Rewire . | . . . . . . . . . . . . . . Trap . | . . . . . . . . . . . . . . Miscellaneous . | . . . . . . . . . . . . . . Route ------- -11/Scrapyard -10/Materials (discovered 2 exits: [*Mat] / *Min) -10/Mines (discovered 4 exits: [*Mat x2] / *Exi / [*Sub]) -10/Exiles -9/Mines -8/Materials (discovered 2 exits: *Fac x2) -7/Factory -6/Factory (discovered 3 exits: *Fac / [*Low] / DSF) -6/DSF -5/Factory (discovered 2 exits: *Fac / [*Upp]) -4/Factory (discovered 4 exits: *Res x3 / [*Upp]) -3/Research (discovered 6 exits: *Res x3 / Arm / Qua x2) -2/Research (discovered 3 exits: *Acc x3) -1/Access To Epsilon Eridani History --------- Turn | Location | Event 15 | -11/Scrapyard | Discovered new exit (range 15) 58 | -11/Scrapyard | Entered Materials 172 | -10/Materials | Identified exit to Mines 203 | -10/Materials | Discovered new exit (range 16) 316 | -10/Materials | Build established: Mutant 976 | -10/Materials | Entered Mines 1072 | -10/Mines | Learned 2 Materials zone layouts 1234 | -10/Mines | Assembled infested the area 1476 | -10/Mines | Discovered new exit (range 3) 1713 | -10/Mines | Discovered new exit (range 11) 1720 | -10/Mines | Received a Rocket Launcher from a helpful Derelict 1839 | -10/Mines | Discovered new exit (range 13) 2554 | -10/Mines | Discovered new exit (range 5) 2785 | -10/Mines | Found a Scrap Suit stashed away for nefarious purposes 2812 | -10/Mines | Found Scrap Suit 3015 | -10/Mines | Entered Exiles 3179 | -10/Exiles | Met 8R-AWN 3294 | -10/Exiles | Met EX-HEX 3478 | -10/Exiles | Met EX-BIN 3573 | -10/Exiles | Aligned with FarCom system 3580 | -10/Exiles | Given EX-Vault access code 3743 | -10/Exiles | Opened EX-Vault 3791 | -10/Exiles | Found Cloak of Protection 3928 | -10/Exiles | Warned to stay clear of 0b10 Research branches 4132 | -10/Exiles | Met EX-DEC 4754 | -10/Exiles | Discovered new exit (range 14) 4806 | -10/Exiles | Left Exiles lab with Cloak of Protection 4806 | -10/Exiles | Entered Mines 4861 | -9/Mines | Met a Derelict bent on vengeance 5108 | -9/Mines | Discovered new exit (range 8) 5153 | -9/Mines | Entered Materials 5153 | -8/Materials | Evolved 4 slots: Propulsion x2, Utility x2 5154 | -8/Materials | Identified exit to Factory 5383 | -8/Materials | Build established: Scavenger-Mutant 6072 | -8/Materials | Build established: Mutant 6162 | -8/Materials | Discovered exit to Factory (range 15) 6450 | -8/Materials | Build established: Scavenger-Mutant 6563 | -8/Materials | Destroyed 8 combat bots 6753 | -8/Materials | First assault squad dispatched 6851 | -8/Materials | Destroyed 8 combat bots 6861 | -8/Materials | Lost 6 parts (1p5n) 7063 | -8/Materials | Repaired Mni. Grenade Launcher 7325 | -8/Materials | Entered Factory 7325 | -7/Factory | Evolved 2 slots: Propulsion x1, Utility x1 7466 | -7/Factory | Identified exit to DSF 7529 | -7/Factory | Discovered new exit (range 4) 7555 | -7/Factory | Identified exit to DSF 7636 | -7/Factory | Build established: Hacker-Sprinter 7789 | -7/Factory | Entered another Factory area 7789 | -6/Factory | Evolved 2 slots: Propulsion x1, Utility x1 7943 | -6/Factory | Repaired Imp. Medium Armor Plating 7967 | -6/Factory | Discovered new exit (range 8) 8023 | -6/Factory | Repaired Imp. VTOL Module 8091 | -6/Factory | Discovered new exit (range 7) 8207 | -6/Factory | Identified exit to DSF 8209 | -6/Factory | Entered DSF 8225 | -6/DSF | Additional patrols routed to DSF 8356 | -6/DSF | Discovered new exit (range 5) 8357 | -6/DSF | Entered Factory 8357 | -5/Factory | Evolved 2 slots: Utility x2 8450 | -5/Factory | Repaired Transmission Jammer 8554 | -5/Factory | Found Prototype Processor 8555 | -5/Factory | Identified Exp. Targeting Computer 8561 | -5/Factory | Discovered new exit (range 8) 8737 | -5/Factory | Discovered new exit (range 5) 8813 | -5/Factory | Entered another Factory area 8813 | -4/Factory | Evolved 2 slots: Power x1, Utility x1 8826 | -4/Factory | Discovered new exit (range 16) 9030 | -4/Factory | Discovered new exit (range 4) 9045 | -4/Factory | Discovered new exit (range 5) 9106 | -4/Factory | Build established: Hacker-Ninja 9236 | -4/Factory | Discovered new exit (range 12) 9254 | -4/Factory | Entered Research 9254 | -3/Research | Evolved 2 slots: Utility x2 9275 | -3/Research | Identified exit to Armory 9275 | -3/Research | Identified exit to Quarantine 9512 | -3/Research | Identified exit to Research 9598 | -3/Research | Entered another Research area 9598 | -2/Research | Evolved 2 slots: Utility x2 9645 | -2/Research | Identified exit to Access 9661 | -2/Research | Spotted B-90 Cyclops 9686 | -2/Research | Fabricated Hacking Suite (x1) 9876 | -2/Research | Entered Access 9876 | -1/Access | Evolved 2 slots: Propulsion x1, Utility x1 9901 | -1/Access | Repaired Mic. Nuclear Core 9907 | -1/Access | Build established: Wizard-Ninja 9955 | -1/Access | Identified exit to Surface 9963 | -1/Access | Fabricated Hacking Suite? 10459 | -1/Access | Repaired Plasma Sword 10606 | *** | Escaped! Last Messages --------------- to Access Zone 5B. 10484_ Connecting with Terminal... 10488_ >> Machine Analyzer network decryption results: 10488_ Garrison Access x1 10492_ Connecting with Garrison Access... >>Seal Access door sealed. 10537_ Acquired Imp. System Restoration Module. 10538_ Discarded System Shield. 10540_ Acquired Hacking Suite. 10565_ W-44 Eye destroyed. 10579_ Connecting with Garrison Access... >>Seal Access door sealed. 10594_ The unstable cave ceiling collapses. 10604_ Connecting with Terminal... >>Open(Door) Sealed Barrier opened. 10605_ The Access Shell folds into the floor. [Achievement: Epsilon Run] Map ----- +----------------------------------------------------+ | # ? " ?????????"""????????????????? # "" | | # """"?????????"""?????????????????? # ! | | + """""??????????"??????????????????? # | | # """""????????????????????????????? # | | # ? """"?????????????????????????????? ######### | | # ??? " ?????????????????????????????# # # | | # ????? =????????????????????????????# # # | | # ??????? #?????????????????????##### # # | | ##????????####????????????????????? + + # | | ##????????####????????????????????? # # # | | ##????????????????????????????????? # # # | | ##????????????????????????????????? # ###### | | ##????????????????????????????????? # #?####### | | ##????????????????????????????????? # #### ## | | ##???????????????????BB????BB?????? + | | ##???????????????????BB????BB?????? ###### ## | | ??????????????????????????????????? #???###+### | | ??????????????????????????????????? #???### | | ??????????????????????????????????? #????## | | ??????????????????##"????????"##??? #????## " | | ??????????????????##""""""""""##???#####????## "" | | ??????????????????## ##????????????## "" | | ??????????????????## ##????????????## | | ??????????????????## ##?????#########* | | ??????????????????## "" ##?????###########+# | | ??????????????????## "@ ##?????## | | ????????w?????????## ##?????## * | | ??????????????????## ##?????##""" | | ?????????????????### ###????##"Y " | | ?????????????????### ###????##""" """ | | ?????????????????## ##????## """ | | ?????????????????###"" ###????## " | | ?????????????????Y##"" ###????## | | ??????????????????##"" ##?????## | | ??????????????????##T ##?????## | | ??????????????????##"" ##?????## | | ???????????#########"" ######### | | ???????????#########"" ###################+ | | ????????? w | | ????????? ? | | ?????????? ######### # #########+###??########+ | | ??????????########## # ###### ?? # | | ?????????????????### ##???????????? + | | ?????????????????### ##???????????? # | | ????""???????#### ###### ??????? # [ | | ???"""???????###### ####### ?? # """" | | ##?"T????????## / ?? # """" | | ##?"""???????## # ##### ?????????? """" | | ##??""???????## # ### ?????????? """" | | ##???????????## ## ##???????????? """" | +----------------------------------------------------+ Best States ------------- Heat Dissipation 52 Energy Generation 35 Energy Capacity 250 Matter Stores 300 Matter Capacity 300 Sight Range 20 Terrain Scan Density 10 ECM Strength 2 Jamming Range 16 Cloak Strength 5 Armor Coverage 300 Evasion (%) 77 Recoil Reduction 4 Offensive Hacking 50 Defensive Hacking 34 Item Schematics ----------------- Lgt. Nuclear Core | -8/Materials | Scanalyzed Lgt. Armor Plating | -8/Materials | Scanalyzed Imp. Light Armor Plating | -8/Materials | Scanalyzed Mni. Grenade Launcher | -8/Materials | Scanalyzed Field Propulsion Array | -4/Factory | Scanalyzed Hacking Suite | -3/Research | Hacked Robot Schematics ------------------ None Fabricated ------------ Hacking Suite | x1 | -2/Research Hacking Suite | x1 | -1/Access Repaired ---------- Mni. Grenade Launcher | 68% | -8/Materials Imp. Medium Armor Plating | 78% | -6/Factory Imp. VTOL Module | 44% | -6/Factory Transmission Jammer | 45% | -5/Factory Mic. Nuclear Core | 56% | -1/Access Plasma Sword | 6% | -1/Access Alien Tech Used ----------------- None Achievements -------------- Epsilon Run Prolific Hacker Challenges ------------ None Game ------ Seed AdvancedGatlingBlasthammer Manual? 0 Play Time 03:06:50 Cumulative 7.5 hours Start 2025.07.16 @ 13:52:35 End 2025.07.16 @ 18:20:05 Sessions 11 Manual Loads 0 Difficulty Rogue Special Mode None Game No. 10 Rogue 10 Adventurer 0 Explorer 0 Win Type 0 Total 1 Types 1/0/0/0/0/0/0/0/0/0 Lore% 9 Gallery% 10 Achievement% 32 Wizard Run 0 Options --------- Layout 0 ASCII 0 Keyboard 0 Movement Numpad Keybinds 1 Fullscreen 2 Font 24/Terminus Map View 76x50 Zoom Use 24% Tactical HUD 1 Map Filters NONE Filters NONE Steam 1 RUN: 01773d42-97d1-45d5-9150-df1bc2dd3867